bitfinex/quotes_BTCUSD_20250617
["timestamp","ask_amount","ask_price","bid_price","bid_amount"]
[1750202392197,1.64648694,104700.0,104690.0,0.002]
[1750202392416,1.66938737,104700.0,104690.0,0.002]
[1750202392674,0.21016366,104680.0,104670.0,0.04052]
[1750202392881,0.60763067,104680.0,104670.0,0.04052]
[1750202393962,0.60763067,104680.0,104670.0,0.04652]
[1750202396442,0.63813067,104680.0,104670.0,0.04652]
[1750202396668,0.66853067,104680.0,104670.0,0.04652]
[1750202398926,0.66853067,104680.0,104670.0,0.04648]
[1750202399364,0.66853067,104680.0,104670.0,0.006]
[1750202399593,0.66853067,104680.0,104670.0,0.04648]
[1750202400939,0.66853067,104680.0,104670.0,0.006]
[1750202401160,0.66853067,104680.0,104670.0,0.04648]
[1750202402576,0.60763067,104680.0,104670.0,0.04648]
[1750202403235,0.45147067,104680.0,104670.0,0.04648]
[1750202403467,0.21016311,104680.0,104670.0,0.40505212]
[1750202403694,0.03821003,104680.0,104670.0,0.42415905]
[1750202403922,0.70634376,104690.0,104680.0,0.26301129]
[1750202404150,0.56924714,104690.0,104680.0,0.37835843]
[1750202404376,0.72544714,104690.0,104680.0,0.35925305]
[1750202404610,0.94765114,104690.0,104680.0,0.16819468]
[1750202404836,0.94765114,104690.0,104680.0,0.35925314]
[1750202405069,0.94765114,104690.0,104680.0,0.36025314]
[1750202405289,0.94765114,104690.0,104680.0,0.36225314]
[1750202405510,0.94765114,104690.0,104680.0,0.37180597]
[1750202407105,0.94765114,104690.0,104680.0,0.36225314]
[1750202408490,0.93809923,104690.0,104680.0,0.16164176]
[1750202413253,0.93809923,104690.0,104680.0,0.09924176]
[1750202413718,0.78189923,104690.0,104680.0,0.09924176]
[1750202413935,0.93809923,104690.0,104680.0,0.09924176]
[1750202414153,0.93809923,104690.0,104680.0,0.003]
[1750202416336,0.96099717,104690.0,104680.0,0.003]
[1750202416549,0.99269717,104690.0,104680.0,0.003]
[1750202417245,1.17519717,104690.0,104680.0,0.003]
[1750202418766,1.184146,104690.0,104680.0,0.003]
[1750202420509,1.18415175,104690.0,104680.0,0.003]
[1750202421700,1.15165175,104690.0,104680.0,0.003]
[1750202421882,1.11995175,104690.0,104680.0,0.003]
[1750202423494,1.11995393,104690.0,104680.0,0.003]
[1750202423708,1.15265393,104690.0,104680.0,0.003]
[1750202424143,1.11995393,104690.0,104680.0,0.003]
[1750202426257,1.11995409,104690.0,104680.0,0.003]
[1750202426764,0.77995409,104690.0,104680.0,0.003]
[1750202429306,0.77995409,104690.0,104680.0,0.04348]
[1750202430045,0.77995565,104690.0,104680.0,0.04348]
[1750202431134,0.62375565,104690.0,104680.0,0.04348]
[1750202431393,0.75761096,104690.0,104680.0,0.10858]
[1750202431612,1.09761096,104690.0,104680.0,0.10858]
[1750202431826,1.09761096,104690.0,104680.0,0.11813292]
[1750202432474,1.09761096,104690.0,104680.0,0.10858]
[1750202433039,1.10657156,104690.0,104680.0,0.10858]
[1750202434183,1.11995911,104690.0,104680.0,0.10858]
[1750202434597,1.11099851,104690.0,104680.0,0.10858]
[1750202434814,1.1199594,104690.0,104680.0,0.10858]
[1750202435444,1.1199594,104690.0,104680.0,0.11813292]
[1750202435661,1.1199594,104690.0,104680.0,0.10858]
[1750202435917,1.1199594,104690.0,104680.0,0.11813292]
[1750202436137,1.1199594,104690.0,104680.0,0.10858]
[1750202436398,1.1199594,104690.0,104680.0,0.11813292]
[1750202436639,1.1199594,104690.0,104680.0,0.10858]
[1750202438070,1.1199594,104690.0,104680.0,0.29963846]
[1750202438306,1.1199594,104690.0,104680.0,0.30919129]
[1750202438567,0.72249239,104690.0,104680.0,0.4149856]
[1750202438818,0.88820412,104690.0,104680.0,0.42453806]
[1750202439064,0.53204302,104690.0,104680.0,0.42453806]
[1750202439355,0.02865429,104690.0,104680.0,0.44863119]
[1750202440405,0.0382062,104690.0,104680.0,0.45818356]
[1750202440663,0.02865429,104690.0,104680.0,0.45818356]
[1750202441366,0.47055342,104690.0,104680.0,0.16434176]
[1750202441367,0.46100214,104690.0,104680.0,0.10858]
[1750202441575,0.45145077,104690.0,104680.0,0.30919138]
[1750202441785,0.45145077,104690.0,104680.0,0.31874412]
[1750202442004,0.26041056,104690.0,104680.0,0.42453834]
[1750202442244,0.26996257,104690.0,104680.0,0.43409071]
[1750202442479,0.46100278,104690.0,104680.0,0.42453834]
[1750202443100,0.46100278,104690.0,104680.0,0.42453852]
[1750202443353,0.46100278,104690.0,104680.0,0.41498588]
[1750202444636,0.46100278,104690.0,104680.0,0.42453852]
[1750202445776,0.45145114,104690.0,104680.0,0.40543314]
[1750202446192,0.45145114,104690.0,104680.0,0.41498588]
[1750202446626,0.45145114,104690.0,104680.0,0.42453852]
[1750202447323,0.45145114,104690.0,104680.0,0.43409098]
[1750202447533,0.45145114,104690.0,104680.0,0.42453852]
[1750202448003,0.45145114,104690.0,104680.0,0.43409107]
[1750202448423,0.45145114,104690.0,104680.0,0.42453852]
[1750202449668,0.45145114,104690.0,104680.0,0.41498588]
[1750202450082,0.44189923,104690.0,104680.0,0.20482176]
[1750202450715,0.44189923,104690.0,104680.0,0.40543314]
[1750202450951,0.43234722,104690.0,104680.0,0.20482176]
[1750202455699,0.43234722,104690.0,104680.0,0.0681]
[1750202455700,0.19104021,104690.0,104680.0,0.0681]
[1750202455833,0.43234722,104690.0,104680.0,0.04348]
[1750202456043,0.83434722,104690.0,104680.0,0.003]
[1750202456264,1.26286241,104690.0,104680.0,0.003]
[1750202456489,1.29148795,104690.0,104680.0,0.003]
[1750202456706,1.29148851,104690.0,104680.0,0.003]
[1750202456945,1.2449505,104690.0,104680.0,0.003]
[1750202457159,1.2449505,104690.0,104680.0,0.002]
[1750202457368,1.21622757,104690.0,104680.0,0.002]
[1750202457584,0.2006112,104680.0,104670.0,0.04048]
[1750202457805,0.59799821,104680.0,104670.0,0.04048]
[1750202458038,0.62092229,104680.0,104670.0,0.04048]
[1750202458292,0.59799821,104680.0,104670.0,0.07098]
[1750202458706,0.59799821,104680.0,104670.0,0.07198]
[1750202459182,0.59799821,104680.0,104670.0,0.04148]
[1750202459383,0.59799821,104680.0,104670.0,0.04348]
[1750202460429,0.59799821,104680.0,104670.0,0.003]
[1750202460634,0.59799821,104680.0,104670.0,0.04344]
[1750202461052,0.6209134,104680.0,104670.0,0.04344]
[1750202461457,0.59799821,104680.0,104670.0,0.04344]
[1750202463941,0.2006112,104680.0,104670.0,0.04344]
[1750202464144,0.59803821,104680.0,104670.0,0.04344]
[1750202465847,0.60759085,104680.0,104670.0,0.04344]
[1750202466049,0.60759085,104680.0,104670.0,0.07354]
[1750202468324,0.21016384,104680.0,104670.0,0.30547054]
[1750202468535,0.36624384,104680.0,104670.0,0.31502428]
[1750202470041,0.36624384,104680.0,104670.0,0.32457784]
[1750202470252,0.21016384,104680.0,104670.0,0.31502428]
[1750202470460,0.36624384,104680.0,104670.0,0.32457793]
[1750202470709,0.21016384,104680.0,104670.0,0.32457793]
[1750202470924,0.36624384,104680.0,104670.0,0.32457793]
[1750202472469,0.36624384,104680.0,104670.0,0.31502428]
[1750202473112,0.60755085,104680.0,104670.0,0.31502428]
[1750202473347,0.60755085,104680.0,104670.0,0.32457793]
[1750202476077,0.3566912,104680.0,104670.0,0.32457793]
[1750202476301,0.3566912,104680.0,104670.0,0.33413149]
[1750202476751,0.3566912,104680.0,104670.0,0.38760944]
[1750202477238,0.3566912,104680.0,104670.0,0.33413149]
[1750202477466,0.00955219,104680.0,104670.0,0.42211869]
[1750202477655,0.01910474,104680.0,104670.0,0.4316717]
[1750202477915,0.01910465,104680.0,104670.0,0.4316717]
[1750202478673,0.03820957,104680.0,104670.0,0.42211869]
[1750202478868,0.04776231,104680.0,104670.0,0.42211869]
[1750202481448,0.04776295,104680.0,104670.0,0.42211869]
[1750202483010,0.23882141,104680.0,104670.0,0.4125655]
[1750202483230,0.45147122,104680.0,104670.0,0.20238176]
[1750202483903,0.45147122,104680.0,104670.0,0.21193559]
[1750202484117,0.45147122,104680.0,104670.0,0.4030123]
[1750202484329,0.45147122,104680.0,104670.0,0.41256595]
[1750202484540,0.45147122,104680.0,104670.0,0.42211951]
[1750202486075,0.45147122,104680.0,104670.0,0.43167298]
[1750202486743,0.21016421,104680.0,104670.0,0.43167298]
[1750202486957,0.45147122,104680.0,104670.0,0.43167298]
[1750202487173,0.45147122,104680.0,104670.0,0.42211951]
[1750202487396,0.26041276,104680.0,104670.0,0.43167298]
[1750202487631,0.00955246,104680.0,104670.0,0.44649848]
[1750202487820,0.00955246,104680.0,104670.0,0.43167234]
[1750202488064,0.02865738,104680.0,104670.0,0.44122544]
[1750202488538,0.22926867,104680.0,104670.0,0.41256568]
[1750202488788,0.4610234,104680.0,104670.0,0.16194176]
[1750202489013,0.4610234,104680.0,104670.0,0.41256604]
[1750202490844,0.22961908,104680.0,104670.0,0.41256604]
[1750202491038,0.22961908,104680.0,104670.0,0.20238176]
[1750202491039,0.42067754,104680.0,104670.0,0.20238176]
[1750202492356,0.42067754,104680.0,104670.0,0.21193559]
[1750202492843,0.42067754,104680.0,104670.0,0.13968176]
[1750202493530,0.42067754,104680.0,104670.0,0.14923559]
[1750202493949,0.42067754,104680.0,104670.0,0.13968176]
[1750202497685,0.19105846,104680.0,104670.0,0.13968176]
[1750202497899,0.43236547,104680.0,104670.0,0.13968176]
[1750202500649,0.45531334,104680.0,104670.0,0.13968176]
[1750202503693,0.45531334,104680.0,104670.0,0.20528176]
[1750202504360,0.45531334,104680.0,104670.0,0.17288176]
[1750202504995,0.45531334,104680.0,104670.0,0.13968176]
[1750202506156,0.45531334,104680.0,104670.0,0.17078176]
[1750202507529,0.46486617,104680.0,104670.0,0.37141212]
[1750202507797,0.483971,104680.0,104670.0,0.41106577]
[1750202508021,1.02454551,104700.0,104680.0,0.26111138]
[1750202508275,0.38524714,104690.0,104680.0,0.27066412]
[1750202508514,0.40819335,104690.0,104680.0,0.27066412]
[1750202508753,0.25219335,104690.0,104680.0,0.36690588]
[1750202508985,0.38524714,104690.0,104680.0,0.36690588]
[1750202509222,0.25219335,104690.0,104680.0,0.38601107]
[1750202509450,0.38524714,104690.0,104680.0,0.39556353]
[1750202509689,0.40819335,104690.0,104680.0,0.39556353]
[1750202510155,0.40819335,104690.0,104680.0,0.36690588]
[1750202510385,0.70721563,104700.0,104680.0,0.45503414]
[1750202510614,0.00955146,104690.0,104680.0,0.39453414]
[1750202510845,0.00955146,104690.0,104680.0,0.43493414]
[1750202511091,0.00955146,104690.0,104680.0,0.42930989]
[1750202511601,0.0191031,104690.0,104680.0,0.42930989]
[1750202512071,0.57314663,104700.0,104690.0,0.27354376]
[1750202512293,0.73869754,104700.0,104690.0,0.36978552]
[1750202512512,0.74824863,104700.0,104690.0,0.37933707]
[1750202512737,0.74824863,104700.0,104690.0,0.36978552]
[1750202513215,0.59224863,104700.0,104690.0,0.36978552]
[1750202513444,0.59224863,104700.0,104690.0,0.37933707]
[1750202513658,0.56931612,104700.0,104690.0,0.37933707]
[1750202513866,0.56931612,104700.0,104690.0,0.36978561]
[1750202514089,0.81162313,104700.0,104690.0,0.36023388]
[1750202514312,0.80407258,104700.0,104690.0,0.15964176]
[1750202514534,0.79452176,104700.0,104690.0,0.15964176]
[1750202515003,0.79452176,104700.0,104690.0,0.16919377]
[1750202515502,0.79452176,104700.0,104690.0,0.15964176]
[1750202515723,0.79452176,104700.0,104690.0,0.16919377]
[1750202515945,0.79452176,104700.0,104690.0,0.15964176]
[1750202516592,0.78497085,104700.0,104690.0,0.15964176]
[1750202516833,0.80336048,104700.0,104690.0,0.15964176]
[1750202517068,0.78497085,104700.0,104690.0,0.15964176]
[1750202518444,0.54366384,104700.0,104690.0,0.15964176]
[1750202518674,0.94093085,104700.0,104690.0,0.35068197]
[1750202518919,0.94093085,104700.0,104690.0,0.36023388]
[1750202519393,0.59394862,104700.0,104690.0,0.36978552]
[1750202519590,0.79452149,104700.0,104690.0,0.36023388]
[1750202519850,0.79452149,104700.0,104690.0,0.36023398]
[1750202520095,0.55321448,104700.0,104690.0,0.36023398]
[1750202520341,0.79452149,104700.0,104690.0,0.36023398]
[1750202520584,0.81291112,104700.0,104690.0,0.15964176]
[1750202520817,0.79452149,104700.0,104690.0,0.15964176]
[1750202521058,0.79452149,104700.0,104690.0,0.12754176]
[1750202522684,0.79452149,104700.0,104690.0,0.13660176]
[1750202523600,0.21014376,104690.0,104680.0,0.26411117]
[1750202523847,0.26996202,104690.0,104680.0,0.41026548]
[1750202524079,0.76971403,104690.0,104680.0,0.41026567]
[1750202524767,0.96075424,104690.0,104680.0,0.40071293]
[1750202524991,0.95120278,104690.0,104680.0,0.40071293]
[1750202525231,0.95120278,104690.0,104680.0,0.41026567]
[1750202525495,0.95120278,104690.0,104680.0,0.20010176]
[1750202525781,0.95120278,104690.0,104680.0,0.20965468]
[1750202526243,0.95120278,104690.0,104680.0,0.22876025]
[1750202526481,0.95120278,104690.0,104680.0,0.42937135]
[1750202527321,0.95120278,104690.0,104680.0,0.41981871]
[1750202527660,0.94165105,104690.0,104680.0,0.41981871]
[1750202528111,0.94165105,104690.0,104680.0,0.51463742]
[1750202528353,0.94165105,104690.0,104680.0,0.42937135]
[1750202528805,0.94165105,104690.0,104680.0,0.41026597]
[1750202529047,0.75061084,104690.0,104680.0,0.41981871]
[1750202529296,0.75061038,104690.0,104680.0,0.42937135]
[1750202529536,0.75061038,104690.0,104680.0,0.41981871]
[1750202529800,0.75061038,104690.0,104680.0,0.42937135]
[1750202530071,0.26041038,104690.0,104680.0,0.4389239]
[1750202530340,0.26041038,104690.0,104680.0,0.43892326]
[1750202531746,0.26041038,104690.0,104680.0,0.42937098]
[1750202531974,0.04191388,104690.0,104680.0,0.43892335]
[1750202532648,0.04191379,104690.0,104680.0,0.4389228]
[1750202532863,0.04191379,104690.0,104680.0,0.42937052]
[1750202533080,0.04191379,104690.0,104680.0,0.4389228]
[1750202533318,0.04191379,104690.0,104680.0,0.42937052]
[1750202533765,0.04191379,104690.0,104680.0,0.43892298]
[1750202533987,0.0514657,104690.0,104680.0,0.43892298]
[1750202534205,0.02865528,104690.0,104680.0,0.43892298]
[1750202534427,0.02865528,104690.0,104680.0,0.42937061]
[1750202534685,0.03820729,104690.0,104680.0,0.41981815]
[1750202534953,0.03820729,104690.0,104680.0,0.42937061]
[1750202535196,0.03820729,104690.0,104680.0,0.41981815]
[1750202536060,0.02865528,104690.0,104680.0,0.42937061]
[1750202536288,0.03820729,104690.0,104680.0,0.4102656]
[1750202536983,0.47047459,104690.0,104680.0,0.15974176]
[1750202537221,0.5881873,104690.0,104670.0,0.25227671]
[1750202537454,0.5881873,104690.0,104670.0,0.35807042]
[1750202537455,0.44183829,104680.0,104670.0,0.35807042]
[1750202537680,0.45139057,104680.0,104670.0,0.39843042]
[1750202537911,0.44183829,104680.0,104670.0,0.16699559]
[1750202538111,0.68306538,104680.0,104670.0,0.14615559]
[1750202538839,0.44183829,104680.0,104670.0,0.10579559]
[1750202539062,0.44183829,104680.0,104670.0,0.14615559]
[1750202539497,0.44183829,104680.0,104670.0,0.15570924]
[1750202539779,0.44183829,104680.0,104670.0,0.15670924]
[1750202540014,0.44183829,104680.0,104670.0,0.15670933]
[1750202540246,0.44183829,104680.0,104670.0,0.14915559]
[1750202540701,0.44183829,104680.0,104670.0,0.13960176]
[1750202540921,0.44190635,104680.0,104670.0,0.14915559]
[1750202541142,0.44190635,104680.0,104670.0,0.15870933]
[1750202541382,0.44190635,104680.0,104670.0,0.16826298]
[1750202541598,0.44190635,104680.0,104670.0,0.14915559]
[1750202542719,0.2006112,104680.0,104670.0,0.35933942]
[1750202542943,0.21971658,104680.0,104670.0,0.42233942]
[1750202543654,0.21971658,104680.0,104670.0,0.43189279]
[1750202543655,0.02865812,104680.0,104670.0,0.43189279]
[1750202543911,0.02865812,104680.0,104670.0,0.42233942]
[1750202544361,0.21971658,104680.0,104670.0,0.42233951]
[1750202545013,0.21971658,104680.0,104670.0,0.41278595]
[1750202545239,0.21971658,104680.0,104670.0,0.42233951]
[1750202545459,0.21971658,104680.0,104670.0,0.41278595]
[1750202545680,0.21971658,104680.0,104670.0,0.42233951]
[1750202545900,0.21971658,104680.0,104670.0,0.43189298]
[1750202547271,0.21971658,104680.0,104670.0,0.42233951]
[1750202548435,0.21971658,104680.0,104670.0,0.41278595]
[1750202548660,0.21971658,104680.0,104670.0,0.42233951]
[1750202548881,0.21016412,104680.0,104670.0,0.4032323]
[1750202549109,0.44190653,104680.0,104670.0,0.17985559]
[1750202549776,0.44190653,104680.0,104670.0,0.19896298]
[1750202550022,0.44190653,104680.0,104670.0,0.39003969]
[1750202550254,0.44190653,104680.0,104670.0,0.39959325]
[1750202550701,0.44190653,104680.0,104670.0,0.43029325]
[1750202551635,0.44190653,104680.0,104670.0,0.43013625]
[1750202552074,0.44190653,104680.0,104670.0,0.41102904]
[1750202552516,0.44190653,104680.0,104670.0,0.21995233]
[1750202552737,0.44190653,104680.0,104670.0,0.42058269]
[1750202552956,0.44190653,104680.0,104670.0,0.41102904]
[1750202553380,0.44190653,104680.0,104670.0,0.42058269]
[1750202553596,0.44190653,104680.0,104670.0,0.3707753]
[1750202553822,0.44190653,104680.0,104670.0,0.17014476]
[1750202555180,0.43235361,104680.0,104670.0,0.17014476]
[1750202555833,0.43235361,104680.0,104670.0,0.13944476]
[1750202556297,0.43235361,104680.0,104670.0,0.04348]
[1750202557440,0.45528002,104680.0,104670.0,0.04348]
[1750202558824,0.51968002,104680.0,104670.0,0.04348]
[1750202562906,0.76105871,104680.0,104670.0,0.04348]
[1750202563568,0.72875871,104680.0,104670.0,0.04348]
[1750202563790,0.69665871,104680.0,104670.0,0.04348]
[1750202565604,0.21398487,104680.0,104670.0,0.04348]
[1750202565819,0.6737323,104680.0,104670.0,0.04348]
[1750202566042,0.69665871,104680.0,104670.0,0.04348]
[1750202568568,0.69666688,104680.0,104670.0,0.04348]
[1750202569007,0.69666688,104680.0,104670.0,0.003]
[1750202569225,0.75916688,104680.0,104670.0,0.04348]
[1750202569877,0.69666688,104680.0,104670.0,0.04348]
[1750202581149,0.21399304,104680.0,104670.0,0.04348]
[1750202581544,0.6737323,104680.0,104670.0,0.07498]
[1750202581758,0.69666688,104680.0,104670.0,0.07498]
[1750202582188,0.21399304,104680.0,104670.0,0.07498]
[1750202582406,0.19105846,104680.0,104670.0,0.07498]
[1750202582620,0.6737323,104680.0,104670.0,0.07498]
[1750202582806,0.69666688,104680.0,104670.0,0.07498]
[1750202583444,0.69666688,104680.0,104670.0,0.10756]
[1750202583656,0.21399304,104680.0,104670.0,0.10756]
[1750202583874,0.19105846,104680.0,104670.0,0.10756]
[1750202584084,0.6737323,104680.0,104670.0,0.10756]
[1750202584298,0.69666688,104680.0,104670.0,0.10756]
[1750202584736,0.21399304,104680.0,104670.0,0.10756]
[1750202584962,0.37571621,104680.0,104670.0,0.6899655]
[1750202585191,0.2330986,104680.0,104670.0,0.41398604]
[1750202585412,0.45150094,104680.0,104670.0,0.20380176]
[1750202585633,0.47443552,104680.0,104670.0,0.21335559]
[1750202586684,0.47443552,104680.0,104670.0,0.20380176]
[1750202587794,0.46488288,104680.0,104670.0,0.20380176]
[1750202588022,0.46488288,104680.0,104670.0,0.21335559]
[1750202588206,0.46488288,104680.0,104670.0,0.20380176]
[1750202590934,0.45532996,104680.0,104670.0,0.20380176]
[1750202591211,0.4354943,104680.0,104670.0,0.20380176]
[1750202591636,0.67683122,104680.0,104670.0,0.20380176]
[1750202592509,0.45532996,104680.0,104670.0,0.21335559]
[1750202593168,0.45532996,104680.0,104670.0,0.22290933]
[1750202593380,0.45532996,104680.0,104670.0,0.21335559]
[1750202594256,0.46488279,104680.0,104670.0,0.22290933]
[1750202594684,0.46488279,104680.0,104670.0,0.4235396]
[1750202594900,0.46488279,104680.0,104670.0,0.50105474]
[1750202595291,0.46488279,104680.0,104670.0,0.5106083]
[1750202595500,0.46488279,104680.0,104670.0,0.50105474]
[1750202595713,0.46488279,104680.0,104670.0,0.41398604]
[1750202596368,0.2604423,104680.0,104670.0,0.42353951]
[1750202596988,0.2604423,104680.0,104670.0,0.41398595]
[1750202597201,0.45150076,104680.0,104670.0,0.4044323]
[1750202597442,0.45150076,104680.0,104670.0,0.41398604]
[1750202597670,0.45150076,104680.0,104670.0,0.4044323]
[1750202597887,0.45150076,104680.0,104670.0,0.41398604]
[1750202598314,0.45150076,104680.0,104670.0,0.42353969]
[1750202599226,0.45150076,104680.0,104670.0,0.52693864]
[1750202599439,0.45150076,104680.0,104670.0,0.51738517]
[1750202599659,0.45150076,104680.0,104670.0,0.43309325]
[1750202600351,0.45150076,104680.0,104670.0,0.41398604]
[1750202600804,0.45150076,104680.0,104670.0,0.4235396]
[1750202601024,0.47444708,104680.0,104670.0,0.4235396]
[1750202601710,0.47444708,104680.0,104670.0,0.42353969]
[1750202601903,0.47444708,104680.0,104670.0,0.43309325]
[1750202602226,0.47444708,104680.0,104670.0,0.42353969]
[1750202602686,0.47444708,104680.0,104670.0,0.41398604]
[1750202603325,0.47444708,104680.0,104670.0,0.42353969]
[1750202603988,0.47444708,104680.0,104670.0,0.41398604]
[1750202604628,0.47444708,104680.0,104670.0,0.4235396]
[1750202604836,0.47444708,104680.0,104670.0,0.43309307]
[1750202605046,0.47444708,104680.0,104670.0,0.4235396]
[1750202606168,0.47444708,104680.0,104670.0,0.41398604]
[1750202606422,0.47444708,104680.0,104670.0,0.22290933]
[1750202607054,0.47444708,104680.0,104670.0,0.42353969]
[1750202608567,0.47444708,104680.0,104670.0,0.41398604]
[1750202609442,0.47444708,104680.0,104670.0,0.4044323]
[1750202609652,0.47444708,104680.0,104670.0,0.41398604]
[1750202609863,0.47444708,104680.0,104670.0,0.4044323]
[1750202610078,0.47444708,104680.0,104670.0,0.41398604]
[1750202610315,0.47444708,104680.0,104670.0,0.4044323]
[1750202610525,0.47444708,104680.0,104670.0,0.41398604]
[1750202611167,0.24240115,104680.0,104670.0,0.41398604]
[1750202611790,0.24240115,104680.0,104670.0,0.42353969]
[1750202612206,0.24240115,104680.0,104670.0,0.20380176]
[1750202612418,0.24240115,104680.0,104670.0,0.21335559]
[1750202612622,0.24240115,104680.0,104670.0,0.22290933]
[1750202612845,0.24240115,104680.0,104670.0,0.23246298]
[1750202613055,0.24240115,104680.0,104670.0,0.22290933]
[1750202613265,0.24240115,104680.0,104670.0,0.23246298]
[1750202613706,0.24240115,104680.0,104670.0,0.42353969]
[1750202613926,0.05134269,104680.0,104670.0,0.50823957]
[1750202614186,0.22295279,104690.0,104670.0,0.489132]
[1750202614406,0.22295279,104690.0,104670.0,0.41428559]
[1750202614407,0.43550686,104680.0,104670.0,0.41428559]
[1750202614625,0.37567621,104680.0,104670.0,0.64606904]
[1750202614855,0.37567621,104680.0,104670.0,0.66517607]
[1750202615066,0.37567621,104680.0,104670.0,0.42383915]
[1750202615271,0.37567621,104680.0,104670.0,0.42283915]
[1750202615719,0.18461775,104680.0,104670.0,0.42283915]
[1750202616146,0.03821067,104680.0,104670.0,0.43339252]
[1750202616606,0.03821067,104680.0,104670.0,0.42383915]
[1750202617119,0.27954759,104680.0,104670.0,0.42383915]
[1750202617870,0.27954759,104680.0,104670.0,0.41428568]
[1750202618114,0.03821067,104680.0,104670.0,0.42383905]
[1750202618343,0.01910465,104680.0,104670.0,0.76035628]
[1750202619522,0.02865684,104680.0,104670.0,0.67472916]
[1750202619991,0.01910447,104680.0,104670.0,0.68927001]
[1750202620228,0.01910438,104680.0,104670.0,0.68927001]
[1750202620740,0.0095521,104680.0,104670.0,0.68927001]
[1750202620972,0.01910438,104680.0,104670.0,0.68927001]
[1750202621198,0.02865684,104680.0,104670.0,0.68927001]
[1750202621429,0.01910438,104680.0,104670.0,0.68927001]
[1750202621670,0.02865675,104680.0,104670.0,0.68927001]
[1750202623026,0.0382093,104680.0,104670.0,0.68927001]
[1750202624175,0.47060541,104680.0,104670.0,0.42882671]
[1750202624385,0.45150076,104680.0,104670.0,0.16374176]
[1750202624641,0.76943101,104680.0,104670.0,0.04336]
[1750202625664,1.10943101,104680.0,104670.0,0.04336]
[1750202625883,1.11839204,104680.0,104670.0,0.04336]
[1750202626301,0.6357182,104680.0,104670.0,0.04336]
[1750202626528,1.11839204,104680.0,104670.0,0.04336]
[1750202626973,0.87706074,104680.0,104670.0,0.04236]
[1750202627397,0.87706074,104680.0,104670.0,0.04036]
[1750202627599,0.86809965,104680.0,104670.0,0.04036]
[1750202629093,0.80489965,104680.0,104670.0,0.04036]
[1750202629316,0.70996434,104680.0,104670.0,0.19850176]
[1750202629759,0.51890588,104680.0,104670.0,0.19850176]
[1750202629970,0.70996434,104680.0,104670.0,0.19850176]
[1750202630391,0.70995311,104680.0,104670.0,0.19850176]
[1750202631647,0.68701846,104680.0,104670.0,0.19850176]
[1750202631854,0.53105846,104680.0,104670.0,0.42205218]
[1750202632096,0.02865739,104680.0,104670.0,0.70160834]
[1750202632311,0.18461739,104680.0,104670.0,0.70160852]
[1750202632537,0.02865739,104680.0,104670.0,0.46026604]
[1750202632957,0.00955219,104680.0,104670.0,0.46981923]
[1750202633165,0.02865702,104680.0,104670.0,0.46981923]
[1750202633373,0.02865702,104680.0,104670.0,0.43734552]
[1750202634861,0.03820976,104680.0,104670.0,0.43734552]
[1750202635074,0.03820976,104680.0,104670.0,0.41823905]
[1750202635506,0.02865702,104680.0,104670.0,0.42779224]
[1750202635822,0.03820976,104680.0,104670.0,0.42779224]
[1750202636063,0.02865702,104680.0,104670.0,0.42779224]
[1750202636708,0.03820976,104680.0,104670.0,0.42779233]
[1750202637558,0.03820976,104680.0,104670.0,0.43734552]
[1750202637787,0.03820976,104680.0,104670.0,0.41823915]
[1750202638021,0.04776268,104680.0,104670.0,0.41823915]
[1750202638506,0.21971667,104680.0,104670.0,0.19850176]
[1750202639152,0.21971667,104680.0,104670.0,0.21760915]
[1750202639391,0.21971667,104680.0,104670.0,0.40868586]
[1750202639633,0.21971667,104680.0,104670.0,0.41823942]
[1750202639854,0.21971667,104680.0,104670.0,0.42779325]
[1750202641799,0.02865747,104680.0,104670.0,0.43734617]
[1750202642236,0.02865747,104680.0,104670.0,0.43734562]
[1750202642446,0.02865747,104680.0,104670.0,0.42779243]
[1750202643581,0.21971639,104680.0,104670.0,0.16769559]
[1750202643783,0.21971639,104680.0,104670.0,0.3991323]
[1750202644015,0.21971639,104680.0,104670.0,0.40868604]
[1750202644229,0.21971639,104680.0,104670.0,0.42779325]
[1750202644666,0.46105887,104680.0,104670.0,0.42779325]
[1750202644881,0.46105887,104680.0,104670.0,0.41823969]
[1750202645770,0.21971639,104680.0,104670.0,0.41823969]
[1750202645969,0.2006112,104680.0,104670.0,0.19850176]
[1750202646186,0.2006112,104680.0,104670.0,0.20805559]
[1750202646399,0.2006112,104680.0,104670.0,0.21760933]
[1750202646554,0.44195368,104680.0,104670.0,0.21760933]
[1750202646916,0.44195368,104680.0,104670.0,0.20805559]
[1750202647129,0.44195368,104680.0,104670.0,0.21760933]
[1750202647335,0.44195368,104680.0,104670.0,0.20805559]
[1750202648168,0.2006112,104680.0,104670.0,0.20805559]
[1750202648584,0.2006112,104680.0,104670.0,0.21760933]
[1750202648815,0.2006112,104680.0,104670.0,0.20805559]
[1750202649185,0.2006112,104680.0,104670.0,0.19850176]
[1750202649825,0.2006112,104680.0,104670.0,0.20805559]
[1750202650492,0.2006112,104680.0,104670.0,0.19850176]
[1750202650939,0.19105846,104680.0,104670.0,0.19850176]
[1750202651188,0.43240094,104680.0,104670.0,0.09624176]
[1750202651410,0.43240094,104680.0,104670.0,0.13660176]
[1750202653930,0.19105846,104680.0,104670.0,0.13660176]
[1750202654133,0.43240094,104680.0,104670.0,0.13660176]
[1750202660145,0.43240094,104680.0,104670.0,0.04036]
[1750202660362,0.49260094,104680.0,104670.0,0.04036]
[1750202660574,0.51554103,104680.0,104670.0,0.04036]
[1750202661900,0.45534103,104680.0,104670.0,0.04036]
[1750202662564,0.43240094,104680.0,104670.0,0.04036]
[1750202663466,0.45534299,104680.0,104670.0,0.04036]
[1750202664119,0.20063045,104670.0,104660.0,0.26614821]
[1750202664355,0.21018401,104670.0,104660.0,0.41230444]
[1750202665199,0.21018401,104670.0,104660.0,0.42185882]
[1750202665414,0.21018401,104670.0,104660.0,0.42285882]
[1750202665765,0.02866077,104670.0,104660.0,0.42285882]
[1750202666606,0.02866077,104670.0,104660.0,0.41330444]
[1750202666820,0.02866077,104670.0,104660.0,0.40574997]
[1750202667431,0.02866077,104670.0,104660.0,0.41530444]
[1750202667659,0.02866077,104670.0,104660.0,0.42485882]
[1750202667881,0.02866077,104670.0,104660.0,0.41530444]
[1750202668075,0.02866077,104670.0,104660.0,0.42485882]
[1750202668486,0.02866077,104670.0,104660.0,0.44396731]
[1750202668487,0.01910703,104670.0,104660.0,0.44396731]
[1750202668683,0.01910666,104670.0,104660.0,0.44396685]
[1750202668859,0.26040802,104670.0,104660.0,0.44396685]
[1750202669071,0.01910666,104670.0,104660.0,0.44396685]
[1750202669476,0.02866022,104670.0,104660.0,0.44396685]
[1750202670566,0.02866022,104670.0,104660.0,0.68526821]
[1750202670567,0.01910666,104670.0,104660.0,0.68526821]
[1750202670781,0.01910666,104670.0,104660.0,0.44396685]
[1750202673247,0.01910666,104670.0,104660.0,0.43441275]
[1750202673460,0.02866031,104670.0,104660.0,0.43441275]
[1750202674410,0.02866031,104670.0,104660.0,0.44396685]
[1750202674625,0.01910666,104670.0,104660.0,0.44396685]